fUST/lending_fUST_20250601
["ID","MTS","AMOUNT","RATE_DAILY","PERIOD"]
[363481305,1748736643368,-1230.28,0.00018356,2]
[363481307,1748736643377,-430.0,0.00018356,2]
[363481309,1748736643387,-430.0,0.00018356,2]
[363481311,1748736643397,-573.32,0.00018356,2]
[363481313,1748736643406,-2032.08,0.00018356,2]
[363481315,1748736643416,-1803.28,0.00018356,2]
[363481317,1748736643427,-934.91,0.00018356,2]
[363481319,1748736643436,-705.83,0.00018356,2]
[363481321,1748736643446,-430.0,0.00018356,2]
[363481323,1748736643457,-684.97,0.00018356,2]
[363481324,1748736643466,-1703.83,0.00018356,2]
[363481326,1748736643476,-1583.9,0.00018356,2]
[363481328,1748736643486,-653.66867644,0.00018507,2]
[363481330,1748736643495,-2064.55332971,0.00018555,2]
[363481332,1748736643505,-430.0,0.00018629,2]
[363481334,1748736643514,-2295.21,0.00018629,2]
[363481336,1748736643524,-430.0,0.00018629,2]
[363481338,1748736643534,-1272.23,0.00018629,2]
[363481340,1748736643543,-430.0,0.00018629,2]
[363481342,1748736643552,-196.26,0.0001863,2]
[363481343,1748736643562,-1246.34,0.0001863,2]
[363481345,1748736643571,-856.89,0.0001863,2]
[363481347,1748736643581,-1939.93,0.0001863,2]
[363481349,1748736643591,-568.8,0.0001863,2]
[363481351,1748736643601,-2658.76,0.0001863,2]
[363481352,1748736643610,-430.0,0.0001863,2]
[363481353,1748736643621,-920.52,0.0001863,2]
[363481354,1748736643630,-565.43,0.0001863,2]
[363481355,1748736643639,-430.0,0.0001863,2]
[363481356,1748736643648,-430.0,0.0001863,2]
[363481357,1748736643658,-468.72,0.0001863,2]
[363481358,1748736643667,-510.43102726,0.0001863,2]
[363481359,1748736643676,-430.0,0.0001863,2]
[363481360,1748736643686,-430.0,0.0001863,2]
[363481361,1748736643695,-1081.01,0.0001863,2]
[363481362,1748736643705,-557.28,0.0001863,2]
[363481363,1748736643714,-1244.44,0.0001863,2]
[363481364,1748736643723,-430.0,0.0001863,2]
[363481365,1748736643733,-1230.28,0.0001863,2]
[363481366,1748736643743,-430.0,0.0001863,2]
[363481367,1748736643752,-430.0,0.0001863,2]
[363481368,1748736643761,-573.32,0.0001863,2]
[363481369,1748736643770,-2032.08,0.0001863,2]
[363481370,1748736643779,-1803.28,0.0001863,2]
[363481371,1748736643788,-934.91,0.0001863,2]
[363481372,1748736643798,-705.83,0.0001863,2]
[363481373,1748736643807,-430.0,0.0001863,2]
[363481374,1748736643816,-684.97,0.0001863,2]
[363481375,1748736643825,-1703.83,0.0001863,2]
[363481376,1748736643834,-1583.9,0.0001863,2]
[363481377,1748736643843,-2966.07,0.0001865,2]
[363481378,1748736643852,-2064.55332971,0.00018831,2]
[363481379,1748736643861,-1306.24934575,0.000189,2]
[363481380,1748736643870,-430.0,0.00018903,2]
[363481381,1748736643879,-2295.21,0.00018903,2]
[363481382,1748736643888,-430.0,0.00018903,2]
[363481383,1748736643897,-1272.23,0.00018903,2]
[363481384,1748736643911,-430.0,0.00018903,2]
[363481385,1748736643920,-1246.34,0.00018904,2]
[363481386,1748736643929,-856.89,0.00018904,2]
[363481387,1748736643938,-1939.93,0.00018904,2]
[363481388,1748736643947,-568.8,0.00018904,2]
[363481389,1748736643957,-2658.76,0.00018904,2]
[363481390,1748736643967,-430.0,0.00018904,2]
[363481391,1748736643976,-920.52,0.00018904,2]
[363481392,1748736643986,-565.43,0.00018904,2]
[363481394,1748736643997,-430.0,0.00018904,2]
[363481395,1748736644006,-430.0,0.00018904,2]
[363481397,1748736644016,-468.72,0.00018904,2]
[363481398,1748736644025,-492.6460026,0.00018904,2]
[363481400,1748736644035,-430.0,0.00018904,2]
[363481401,1748736644044,-1081.01,0.00018904,2]
[363481403,1748736644053,-557.28,0.00018904,2]
[363481405,1748736644062,-1244.44,0.00018904,2]
[363481407,1748736644072,-430.0,0.00018904,2]
[363481409,1748736644082,-1230.28,0.00018904,2]
[363481411,1748736644091,-430.0,0.00018904,2]
[363481413,1748736644101,-430.0,0.00018904,2]
[363481415,1748736644111,-573.32,0.00018904,2]
[363481417,1748736644120,-2032.08,0.00018904,2]
[363481419,1748736644129,-1803.28,0.00018904,2]
[363481421,1748736644139,-934.91,0.00018904,2]
[363481423,1748736644148,-705.83,0.00018904,2]
[363481425,1748736644157,-430.0,0.00018904,2]
[363481427,1748736644167,-684.97,0.00018904,2]
[363481429,1748736644176,-1703.83,0.00018904,2]
[363481431,1748736644186,-1583.9,0.00018904,2]
[363481433,1748736644195,-2064.55332971,0.00019107,2]
[363481435,1748736644207,-430.0,0.00019177,2]
[363481437,1748736644217,-2295.21,0.00019177,2]
[363481439,1748736644226,-430.0,0.00019177,2]
[363481441,1748736644236,-1272.23,0.00019177,2]
[363481443,1748736644245,-430.0,0.00019177,2]
[363481445,1748736644255,-1246.34,0.00019178,2]
[363481447,1748736644265,-856.89,0.00019178,2]
[363481449,1748736644274,-1939.93,0.00019178,2]
[363481451,1748736644284,-568.8,0.00019178,2]
[363481453,1748736644293,-2658.76,0.00019178,2]
[363481455,1748736644303,-430.0,0.00019178,2]
[363481457,1748736644313,-920.52,0.00019178,2]
[363481460,1748736644322,-565.43,0.00019178,2]
[363481462,1748736644332,-430.0,0.00019178,2]
[363481464,1748736644342,-430.0,0.00019178,2]
[363481466,1748736644352,-468.72,0.00019178,2]
[363481468,1748736644362,-430.0,0.00019178,2]
[363481470,1748736644372,-1081.01,0.00019178,2]
[363481472,1748736644382,-557.28,0.00019178,2]
[363481474,1748736644392,-1244.44,0.00019178,2]
[363481476,1748736644402,-430.0,0.00019178,2]
[363481478,1748736644411,-1230.28,0.00019178,2]
[363481480,1748736644421,-430.0,0.00019178,2]
[363481482,1748736644431,-554.22,0.00019178,2]
[363481484,1748736644441,-573.32,0.00019178,2]
[363481486,1748736644450,-2032.08,0.00019178,2]
[363481488,1748736644460,-1803.28,0.00019178,2]
[363481490,1748736644470,-934.91,0.00019178,2]
[363481492,1748736644480,-705.83,0.00019178,2]
[363481494,1748736644490,-430.0,0.00019178,2]
[363481496,1748736644499,-684.97,0.00019178,2]
[363481498,1748736644509,-1703.83,0.00019178,2]
[363481500,1748736644519,-430.0,0.00019178,2]
[363481502,1748736644529,-430.0,0.00019178,2]
[363481504,1748736644539,-430.0,0.00019178,2]
[363481506,1748736644548,-430.0,0.00019178,2]
[363481508,1748736644558,-430.0,0.00019178,2]
[363481510,1748736644567,-430.0,0.00019178,2]
[363481512,1748736644577,-1583.9,0.00019178,2]
[363481514,1748736644587,-430.0,0.00019178,2]
[363481516,1748736644597,-430.0,0.00019178,2]
[363481518,1748736644607,-430.0,0.00019178,2]
[363481520,1748736644616,-430.0,0.00019178,2]
[363481522,1748736644625,-430.0,0.00019178,2]
[363481524,1748736644635,-500.0,0.00019178,2]
[363481527,1748736644646,-500.0,0.00019178,2]
[363481529,1748736644655,-500.0,0.00019178,2]
[363481531,1748736644665,-500.0,0.00019178,2]
[363481533,1748736644675,-500.0,0.00019178,2]
[363481534,1748736644684,-500.0,0.00019178,2]
[363481536,1748736644694,-168.49035105,0.00019178,2]
[363481539,1748736644704,-500.0,0.00019178,2]
[363481541,1748736644714,-159.855229,0.00019178,2]
[363481543,1748736644724,-544.73113303,0.00019256,2]
[363481545,1748736644733,-2064.55332971,0.00019383,2]
[363481547,1748736644743,-430.0,0.00019451,2]
[363481549,1748736644753,-2295.21,0.00019451,2]
[363481551,1748736644763,-430.0,0.00019451,2]
[363481553,1748736644772,-1272.23,0.00019451,2]
[363481555,1748736644782,-430.0,0.00019451,2]
[363481557,1748736644792,-1246.34,0.00019452,2]
[363481559,1748736644802,-856.89,0.00019452,2]
[363481561,1748736644811,-1939.93,0.00019452,2]
[363481563,1748736644822,-568.8,0.00019452,2]
[363481565,1748736644832,-2658.76,0.00019452,2]
[363481567,1748736644843,-334.9396849,0.00019452,2]
[363481569,1748736644853,-920.52,0.00019452,2]
[363481571,1748736644863,-565.43,0.00019452,2]
[363481573,1748736644873,-430.0,0.00019452,2]
[363481575,1748736644883,-430.0,0.00019452,2]
[363481577,1748736644893,-468.72,0.00019452,2]
[363481579,1748736644902,-430.0,0.00019452,2]
[363481581,1748736644917,-1081.01,0.00019452,2]
[363481583,1748736644926,-557.28,0.00019452,2]
[363481586,1748736644936,-1244.44,0.00019452,2]
[363481589,1748736644946,-152.96,0.00019452,2]
[363481591,1748736644958,-1230.28,0.00019452,2]
[363481594,1748736644969,-430.0,0.00019452,2]
[363481596,1748736644979,-573.32,0.00019452,2]
[363481599,1748736644991,-2032.08,0.00019452,2]
[363481601,1748736645001,-1803.28,0.00019452,2]
[363481603,1748736645011,-934.91,0.00019452,2]
[363481605,1748736645020,-705.83,0.00019452,2]
[363481607,1748736645030,-238.64,0.00019452,2]
[363481609,1748736645040,-684.97,0.00019452,2]
[363481611,1748736645050,-1703.83,0.00019452,2]
[363481613,1748736645060,-1583.9,0.00019452,2]
[363481615,1748736645070,-430.0,0.00019452,2]
[363481617,1748736645080,-587.0,0.00019472,2]
[363481619,1748736645091,-4449.11,0.00019497,2]
[363481621,1748736645100,-653.66867644,0.00019591,2]
[363481623,1748736645110,-2064.55332971,0.00019659,2]
[363481625,1748736645119,-491.95,0.00019702,2]
[363481627,1748736645129,-177.70432624,0.00019702,2]
[363481629,1748736645139,-430.0,0.00019725,2]
[363481631,1748736645149,-2295.21,0.00019725,2]
[363481633,1748736645158,-430.0,0.00019725,2]
[363481635,1748736645169,-1272.23,0.00019725,2]
[363481637,1748736645178,-430.0,0.00019725,2]
[363481639,1748736645188,-1246.34,0.00019726,2]
[363481641,1748736645198,-856.89,0.00019726,2]
[363481643,1748736645209,-1939.93,0.00019726,2]
[363481645,1748736645219,-568.8,0.00019726,2]
[363481647,1748736645228,-2658.76,0.00019726,2]
[363481649,1748736645238,-920.52,0.00019726,2]
[363481651,1748736645248,-565.43,0.00019726,2]
[363481653,1748736645257,-430.0,0.00019726,2]
[363481655,1748736645267,-430.0,0.00019726,2]
[363481657,1748736645277,-468.72,0.00019726,2]
[363481659,1748736645287,-552.2412153,0.00019726,2]
[363481661,1748736645297,-1081.01,0.00019726,2]
[363481663,1748736645306,-557.28,0.00019726,2]
[363481665,1748736645316,-1244.44,0.00019726,2]
[363481667,1748736645325,-1230.28,0.00019726,2]
[363481669,1748736645335,-430.0,0.00019726,2]
[363481671,1748736645345,-573.32,0.00019726,2]
[363481673,1748736645354,-2032.08,0.00019726,2]
[363481675,1748736645364,-1803.28,0.00019726,2]
[363481677,1748736645375,-934.91,0.00019726,2]
[363481679,1748736645385,-705.83,0.00019726,2]
[363481682,1748736645395,-684.97,0.00019726,2]
[363481684,1748736645404,-1703.83,0.00019726,2]
[363481686,1748736645415,-1583.9,0.00019726,2]
[363481688,1748736645424,-430.0,0.00019726,2]
[363481690,1748736645433,-153.0,0.00019726,2]
[363481692,1748736645443,-1086.1965147,0.00019726,2]
[363481694,1748736645453,-153.0,0.00019726,2]
[363481695,1748736645462,-153.0,0.00019726,2]
[363481697,1748736645472,-153.0,0.00019726,2]
[363481699,1748736645482,-306.0,0.00019726,2]
[363481701,1748736645491,-2064.55332971,0.00019934,2]
[363481703,1748736645501,-600.0,0.00019964,2]
[363481706,1748736645510,-430.0,0.00019999,2]
[363481708,1748736645520,-2295.21,0.00019999,2]
[363481709,1748736645530,-430.0,0.00019999,2]
[363481711,1748736645539,-1272.23,0.00019999,2]
[363481713,1748736645549,-430.0,0.00019999,2]
[363481716,1748736645558,-160.0,0.0002,3]
[363481718,1748736645568,-1246.34,0.0002,2]
[363481720,1748736645578,-856.89,0.0002,2]
[363481722,1748736645588,-1939.93,0.0002,2]
[363481724,1748736645597,-568.8,0.0002,2]
[363481726,1748736645607,-2658.76,0.0002,2]
[363481728,1748736645617,-920.52,0.0002,2]
[363481730,1748736645627,-565.43,0.0002,2]
[363481732,1748736645636,-430.0,0.0002,2]
[363481734,1748736645646,-430.0,0.0002,2]
[363481736,1748736645655,-468.72,0.0002,2]
[363481738,1748736645665,-1081.01,0.0002,2]
[363481740,1748736645674,-557.28,0.0002,2]
[363481742,1748736645684,-1244.44,0.0002,2]
[363481744,1748736645693,-1230.28,0.0002,2]
[363481746,1748736645704,-430.0,0.0002,2]
[363481748,1748736645714,-573.32,0.0002,2]
[363481750,1748736645723,-2032.08,0.0002,2]
[363481752,1748736645733,-1803.28,0.0002,2]
[363481754,1748736645742,-934.91,0.0002,2]
[363481756,1748736645752,-705.83,0.0002,2]
[363481758,1748736645762,-684.97,0.0002,2]
[363481760,1748736645771,-1703.83,0.0002,2]
[363481762,1748736645781,-1583.9,0.0002,2]
[363481764,1748736645791,-430.0,0.0002,2]
[363481766,1748736645800,-600.0,0.00020146,2]
[363481768,1748736645810,-537.039742,0.00020187,2]
[363481770,1748736645819,-2064.55332971,0.0002021,2]
[363481772,1748736645828,-430.0,0.00020273,2]
[363481774,1748736645838,-1246.34,0.00020273,2]
[363481776,1748736645847,-2295.21,0.00020273,2]
[363481778,1748736645857,-856.89,0.00020273,2]
[363481780,1748736645866,-430.0,0.00020273,2]
[363481782,1748736645875,-1939.93,0.00020273,2]
[363481784,1748736645884,-1272.23,0.00020273,2]
[363481785,1748736645894,-568.8,0.00020273,2]
[363481788,1748736645905,-430.0,0.00020273,2]
[363481789,1748736645918,-2658.76,0.00020273,2]
[363481791,1748736645928,-920.52,0.00020273,2]
[363481794,1748736645938,-565.43,0.00020273,2]
[363481796,1748736645948,-525.52,0.00020273,2]
[363481797,1748736645959,-430.0,0.00020273,2]
[363481799,1748736645969,-468.72,0.00020273,2]
[363481802,1748736645979,-1081.01,0.00020273,2]
[363481804,1748736645989,-557.28,0.00020273,2]
[363481805,1748736645999,-1244.44,0.00020273,2]
[363481807,1748736646008,-1230.28,0.00020273,2]
[363481809,1748736646018,-430.0,0.00020273,2]
[363481812,1748736646028,-573.32,0.00020273,2]
[363481814,1748736646038,-2032.08,0.00020273,2]
[363481816,1748736646047,-1803.28,0.00020273,2]
[363481818,1748736646057,-934.91,0.00020273,2]
[363481819,1748736646066,-705.83,0.00020273,2]
[363481821,1748736646076,-684.97,0.00020273,2]
[363481823,1748736646085,-1703.83,0.00020273,2]
[363481825,1748736646095,-1583.9,0.00020273,2]
[363481827,1748736646104,-430.0,0.00020273,2]
[363481829,1748736646113,-5932.15,0.00020345,2]
[363481831,1748736646123,-2064.55332971,0.00020486,3]
[363481835,1748736646133,-430.0,0.00020547,2]
[363481836,1748736646143,-1246.34,0.00020547,2]
[363481839,1748736646152,-2295.21,0.00020547,2]
[363481840,1748736646161,-856.89,0.00020547,2]
[363481843,1748736646171,-430.0,0.00020547,2]
[363481844,1748736646180,-1939.93,0.00020547,2]
[363481846,1748736646189,-1272.23,0.00020547,2]
[363481848,1748736646199,-568.8,0.00020547,2]
[363481851,1748736646208,-430.0,0.00020547,2]
[363481852,1748736646217,-2658.76,0.00020547,2]
[363481855,1748736646228,-920.52,0.00020547,2]
[363481857,1748736646238,-565.43,0.00020547,2]
[363481859,1748736646248,-430.0,0.00020547,2]
[363481861,1748736646258,-468.72,0.00020547,2]
[363481863,1748736646267,-1081.01,0.00020547,2]
[363481865,1748736646277,-557.28,0.00020547,2]
[363481867,1748736646286,-1244.44,0.00020547,2]
[363481869,1748736646295,-1230.28,0.00020547,2]
[363481871,1748736646305,-430.0,0.00020547,2]
[363481873,1748736646315,-573.32,0.00020547,2]
[363481875,1748736646324,-2032.08,0.00020547,2]
[363481877,1748736646334,-1803.28,0.00020547,2]
[363481879,1748736646344,-934.91,0.00020547,2]
[363481881,1748736646353,-705.83,0.00020547,2]
[363481895,1748736646474,-684.97,0.00020547,2]
[363481897,1748736646484,-1703.83,0.00020547,2]
[363481899,1748736646494,-1583.9,0.00020547,2]
[363481901,1748736646504,-430.0,0.00020547,2]
[363481903,1748736646513,-544.73113303,0.00020578,2]
[363481905,1748736646523,-7740.56,0.000206,2]
[363481907,1748736646533,-653.66867644,0.00020676,2]
[363481909,1748736646543,-2064.55332971,0.00020762,3]
[363481911,1748736646553,-153.0,0.00020795,2]
[363481913,1748736646562,-156.217942,0.00020795,2]
[363481915,1748736646572,-153.91,0.00020821,2]
[363481917,1748736646582,-1246.34,0.00020821,2]
[363481919,1748736646591,-2295.21,0.00020821,2]
[363481921,1748736646601,-856.89,0.00020821,2]
[363481924,1748736646611,-430.0,0.00020821,2]
[363481926,1748736646620,-1939.93,0.00020821,2]
[363481928,1748736646629,-1272.23,0.00020821,2]
[363481930,1748736646638,-568.8,0.00020821,2]
[363481932,1748736646648,-430.0,0.00020821,2]
[363481934,1748736646659,-2658.76,0.00020821,2]
[363481936,1748736646669,-920.52,0.00020821,2]
[363481938,1748736646679,-565.43,0.00020821,2]
[363481940,1748736646688,-430.0,0.00020821,2]
[363481942,1748736646698,-468.72,0.00020821,2]
[363481944,1748736646708,-1081.01,0.00020821,2]
[363481946,1748736646717,-557.28,0.00020821,2]
[363481948,1748736646726,-1244.44,0.00020821,2]
[363481950,1748736646736,-1230.28,0.00020821,2]
[363481952,1748736646746,-555.4,0.00020821,2]
[363481954,1748736646755,-573.32,0.00020821,2]
[363481956,1748736646764,-2032.08,0.00020821,2]
[363481958,1748736646773,-1803.28,0.00020821,2]
[363481960,1748736646783,-934.91,0.00020821,2]
[363481962,1748736646792,-705.83,0.00020821,2]
[363481964,1748736646801,-684.97,0.00020821,2]
[363481966,1748736646811,-1703.83,0.00020821,2]
[363481968,1748736646820,-1583.9,0.00020821,2]
[363481970,1748736646829,-430.0,0.00020821,2]
[363481972,1748736646838,-728.352832,0.00020932,2]
[363481974,1748736646848,-2064.55332971,0.00021038,4]
[363481976,1748736646858,-600.0,0.0002106,2]
[363481978,1748736646867,-258970.76954393,0.00021094,2]
[363481990,1748736646984,-13441.45159296,0.00021094,2]
[363481993,1748736647001,-430.0,0.00017534,2]
[363481995,1748736647010,-2397.02347375,0.00021094,2]
[363481997,1748736647022,-3972.41080006,0.00021094,2]
[363481999,1748736647033,-933.3810697,0.00021094,2]
[363482001,1748736647044,-1584.34339049,0.00021094,2]
[363482006,1748736647079,-430.0,0.00017808,2]
[363482008,1748736647089,-430.0,0.00018082,2]
[363482010,1748736647098,-7899.89210692,0.00021094,2]
[363482012,1748736647110,-2568.9455266,0.00021094,2]
[363482014,1748736647122,-15497.93705399,0.00021094,2]
[363482016,1748736647134,-5213.43544664,0.00021094,2]
[363482019,1748736647149,-2220.0987434,0.00021094,2]
[363482033,1748736647280,-430.0,0.00016438,2]
[363482034,1748736647289,-430.0,0.00016712,2]
[363482036,1748736647299,-2119.67,0.00018082,2]
[363482038,1748736647308,-1990.519647,0.00018356,2]
[363482040,1748736647320,-129.150353,0.00018356,2]
[363482042,1748736647330,-2119.67,0.0001863,2]
[363482044,1748736647340,-2119.67,0.00018904,2]
[363482046,1748736647350,-2119.67,0.00019178,2]
[363482048,1748736647361,-2119.67,0.00019452,2]
[363482050,1748736647370,-2119.67,0.00019726,2]
[363482052,1748736647380,-1130.49199435,0.0002,2]
[363482054,1748736647391,-989.17800565,0.0002,2]
[363482056,1748736647401,-2119.67,0.00020273,2]
[363482057,1748736647410,-2119.67,0.00020547,2]
[363482059,1748736647419,-4906.75781414,0.00021094,2]
[363482061,1748736647431,-262.248948,0.00021094,2]
[363482064,1748736647444,-6378.88967942,0.00021094,2]
[363482066,1748736647455,-1246.34,0.00021095,2]
[363482068,1748736647464,-2295.21,0.00021095,2]
[363482070,1748736647474,-856.89,0.00021095,2]
[363482072,1748736647484,-517.74,0.00021095,2]
[363482073,1748736647494,-1939.93,0.00021095,2]
[363482076,1748736647504,-1272.23,0.00021095,2]
[363482078,1748736647514,-568.8,0.00021095,2]
[363482079,1748736647523,-430.0,0.00021095,2]
[363482080,1748736647532,-2658.76,0.00021095,2]
[363482081,1748736647543,-920.52,0.00021095,2]
[363482082,1748736647553,-565.43,0.00021095,2]
[363482083,1748736647563,-252.35172915,0.00021095,2]
[363482084,1748736647573,-468.72,0.00021095,2]
[363482085,1748736647582,-153.418591,0.00021095,2]
[363482086,1748736647592,-1081.01,0.00021095,2]
[363482087,1748736647602,-557.28,0.00021095,2]
[363482088,1748736647612,-151.0,0.00021095,2]
[363482089,1748736647621,-151.0,0.00021095,2]
[363482090,1748736647631,-1244.44,0.00021095,2]
[363482091,1748736647640,-151.0,0.00021095,2]
[363482092,1748736647650,-1230.28,0.00021095,2]
[363482093,1748736647660,-573.32,0.00021095,2]
[363482094,1748736647670,-2032.08,0.00021095,2]
[363482095,1748736647679,-1803.28,0.00021095,2]
[363482096,1748736647689,-934.91,0.00021095,2]
[363482097,1748736647698,-705.83,0.00021095,2]
[363482098,1748736647709,-684.97,0.00021095,2]
[363482099,1748736647719,-1703.83,0.00021095,2]
[363482100,1748736647728,-1583.9,0.00021095,2]
[363482101,1748736647737,-49182.37483838,0.000211,2]
[363482104,1748736647753,-2119.67,0.00020821,2]
[363482106,1748736647762,-710.53900302,0.000211,2]
[363482108,1748736647774,-59693.78433636,0.000211,2]
[363482110,1748736647786,-253.74189733,0.000211,2]
[363482112,1748736647798,-461.97081591,0.000211,2]
[363482118,1748736647843,-723.759662,0.00021095,2]
[363482120,1748736647856,-316.03822774,0.00021095,2]
[363482122,1748736647868,-1079.87211026,0.00021095,2]
[363482124,1748736647878,-49222.362509,0.000211,2]
[363482126,1748736647888,-207.4,0.0002116,2]
[363482128,1748736647898,-300.0,0.0002116,2]
[363482130,1748736647909,-300.0,0.0002116,2]
[363482132,1748736647919,-300.0,0.0002116,2]
[363482134,1748736647930,-300.0,0.0002116,2]
[363482136,1748736647940,-300.0,0.0002116,2]
[363482138,1748736647952,-300.0,0.0002116,2]
[363482140,1748736647962,-300.0,0.0002116,2]
[363482142,1748736647972,-300.0,0.0002116,2]
[363482144,1748736647982,-300.0,0.0002116,2]
[363482146,1748736647994,-300.0,0.0002116,2]
[363482148,1748736648003,-300.0,0.0002116,2]
[363482150,1748736648013,-300.0,0.0002116,2]
[363482152,1748736648022,-300.0,0.0002116,2]
[363482154,1748736648031,-300.0,0.0002116,2]
[363482156,1748736648042,-300.0,0.0002116,2]
[363482158,1748736648053,-7415.19,0.00021193,2]
[363482160,1748736648063,-962.0,0.00021206,2]
[363482162,1748736648074,-2227.0,0.00021206,2]
[363482164,1748736648084,-708.0,0.00021206,2]
[363482166,1748736648094,-165.5783376,0.0002126,2]
[363482168,1748736648103,-151.38590866,0.0002126,2]
[363482170,1748736648113,-603.0,0.00021283,2]
[363482172,1748736648123,-2064.55332971,0.00021314,5]
[363482174,1748736648134,-1246.34,0.00021369,2]
[363482176,1748736648145,-2295.21,0.00021369,2]
[363482178,1748736648154,-856.89,0.00021369,2]
[363482180,1748736648164,-1939.93,0.00021369,2]
[363482182,1748736648174,-1272.23,0.00021369,2]
[363482184,1748736648184,-568.8,0.00021369,2]
[363482186,1748736648194,-430.0,0.00021369,2]
[363482188,1748736648204,-2658.76,0.00021369,2]
[363482190,1748736648213,-152.612274,0.00021369,2]
[363482192,1748736648223,-920.52,0.00021369,2]
[363482194,1748736648234,-565.43,0.00021369,2]
[363482196,1748736648244,-468.72,0.00021369,2]
[363482198,1748736648253,-151.0,0.00021369,2]
[363482201,1748736648263,-1081.01,0.00021369,2]
[363482202,1748736648273,-557.28,0.00021369,2]
[363482205,1748736648283,-1244.44,0.00021369,2]
[363482207,1748736648293,-1230.28,0.00021369,2]
[363482209,1748736648303,-573.32,0.00021369,2]
[363482210,1748736648312,-2032.08,0.00021369,2]
[363482212,1748736648322,-1803.28,0.00021369,2]
[363482214,1748736648332,-934.91,0.00021369,2]
[363482216,1748736648342,-705.83,0.00021369,2]
[363482219,1748736648352,-684.97,0.00021369,2]
[363482220,1748736648361,-623.255909,0.00021369,2]
[363482223,1748736648372,-1703.83,0.00021369,2]
[363482225,1748736648381,-623.255909,0.00021369,2]
[363482227,1748736648391,-1583.9,0.00021369,2]
[363482228,1748736648402,-151.0,0.00021369,2]
[363482230,1748736648411,-247.061767,0.00021369,2]
[363482232,1748736648420,-2119.67,0.00021369,2]
[363482234,1748736648430,-1027.75,0.000214,2]
[363482236,1748736648439,-165.5783376,0.00021425,2]
[363482238,1748736648449,-151.38590866,0.00021452,2]
[363482240,1748736648460,-405.0,0.00021535,2]
[363482243,1748736648470,-405.0,0.00021535,2]
[363482245,1748736648480,-165.5783376,0.00021589,2]
[363482247,1748736648489,-2064.55332971,0.0002159,5]
[363482249,1748736648500,-151.0,0.000216,2]
[363482251,1748736648510,-151.0,0.000216,2]
[363482253,1748736648519,-154.450598,0.000216,2]
[363482255,1748736648529,-2295.21,0.00021643,2]
[363482257,1748736648538,-1246.34,0.00021643,2]
[363482259,1748736648548,-856.89,0.00021643,2]
[363482261,1748736648558,-1939.93,0.00021643,2]
[363482263,1748736648568,-1272.23,0.00021643,2]
[363482265,1748736648577,-568.8,0.00021643,2]
[363482267,1748736648587,-430.0,0.00021643,2]
[363482269,1748736648596,-2658.76,0.00021643,2]
[363482271,1748736648606,-920.52,0.00021643,2]
[363482272,1748736648616,-565.43,0.00021643,2]
[363482274,1748736648626,-468.72,0.00021643,2]
[363482276,1748736648635,-1081.01,0.00021643,2]
[363482278,1748736648645,-557.28,0.00021643,2]
[363482280,1748736648658,-1244.44,0.00021643,2]
[363482283,1748736648668,-1230.28,0.00021643,2]
[363482285,1748736648678,-573.32,0.00021643,2]
[363482287,1748736648687,-2032.08,0.00021643,2]